lending/lending_fUSD_20251106
["ID","MTS","AMOUNT","RATE_DAILY","PERIOD"]
[393273503,1762414247893,-541.62569463,0.00017999,2]
[393273504,1762414247903,-666.0,0.00017999,2]
[393273505,1762414247912,-278.50694552,0.00018,2]
[393273506,1762414247921,-3250534.77552221,0.00018,2]
[393273507,1762414248118,-150.0,0.00016004,2]
[393273508,1762414248131,-150.0,0.00016004,2]
[393273509,1762414248141,-198.50837477,0.00016141,2]
[393273510,1762414248151,-150.0,0.00016141,2]
[393273511,1762414248161,-155.18319964,0.00016278,2]
[393273512,1762414248171,-3221.13792559,0.000179,2]
[393273513,1762414248182,-2518.81910685,0.000179,2]
[393273514,1762414248192,-175.620212,0.00017998,2]
[393273515,1762414248201,-151.0,0.00017998,2]
[393273516,1762414248211,-263.044804,0.00017998,2]
[393273517,1762414248220,-53697.6527442,0.00018,2]
[393273518,1762414248231,-500.0,0.00018,2]
[393273519,1762414248436,-1205.44,0.00016578,2]
[393273520,1762414248496,-477.12,0.00017041,2]
[393273521,1762414248506,-607.0,0.00017322,2]
[393273522,1762414248516,-263.044804,0.00017998,2]
[393273523,1762414248525,-12856.38528972,0.00018,2]
[393273524,1762414283119,500.0,0.00015015,2]
[393273525,1762414335803,341.75290067,0.00038624,30]
[393273526,1762414375214,176.21,0.00012976,2]
[393273527,1762414375425,176.21,0.00014273,2]
[393273528,1762414439298,273.0,0.00038624,30]
[393273529,1762414447282,167.52132526,0.00038624,30]
[393273530,1762414488821,283.14147496,0.00038625,30]
[393273532,1762414530017,499.08869173,0.00038625,30]
[393273533,1762414627871,645.58171656,0.00038625,30]
[393273534,1762414628025,500.0,0.00038625,30]
[393273535,1762414628626,500.0,0.00038625,30]
[393273536,1762414629224,500.0,0.00038625,30]
[393273537,1762414629807,500.0,0.00038625,30]
[393273538,1762414630487,500.0,0.00038625,30]
[393273539,1762414631101,500.0,0.00038625,30]
[393273540,1762414631727,500.0,0.00038625,30]
[393273541,1762414644044,5802.67,0.00014932,2]
[393273542,1762414649194,-151.0,0.00015393,2]
[393273543,1762414649216,-151.0,0.00015394,2]
[393273544,1762414649239,-151.0,0.00015396,2]
[393273545,1762414649262,-195.0,0.00015399,2]
[393273546,1762414649290,-151.0,0.00015402,2]
[393273547,1762414649313,-195.0,0.00015409,2]
[393273548,1762414649346,-195.0,0.00015419,2]
[393273549,1762414649372,-250.0,0.0001542,2]
[393273550,1762414649396,-250.0,0.00015433,2]
[393273551,1762414649420,-210.83989586,0.00015471,2]
[393273552,1762414649442,-1644.7576,0.00015491,2]
[393273553,1762414649465,-176.21,0.00015571,2]
[393273554,1762414649492,-166.66,0.00015593,2]
[393273555,1762414649515,-722.20711483,0.00015714,2]
[393273556,1762414649540,-1006.9224784,0.00015714,2]
[393273557,1762414649570,-210.83989585,0.00015714,2]
[393273558,1762414649600,-151.0,0.00015804,2]
[393273559,1762414649626,-151.0,0.00015804,2]
[393273560,1762414649650,-151.0,0.00015804,2]
[393273561,1762414649675,-151.0,0.00015804,2]
[393273562,1762414649699,-151.0,0.00015804,2]
[393273563,1762414649729,-151.0,0.00015804,2]
[393273564,1762414649752,-151.0,0.00015804,2]
[393273565,1762414649784,-151.0,0.00015804,2]
[393273566,1762414649815,-151.0,0.00015804,2]
[393273567,1762414649840,-151.0,0.00015804,2]
[393273568,1762414649864,-151.0,0.00015804,2]
[393273569,1762414649889,-151.0,0.00015804,2]
[393273570,1762414649914,-151.0,0.00015804,2]
[393273571,1762414649939,-151.0,0.00015804,2]
[393273572,1762414649964,-151.0,0.00015804,2]
[393273573,1762414649991,-151.0,0.00015804,2]
[393273574,1762414650016,-151.0,0.00015804,2]
[393273575,1762414650041,-151.0,0.00015804,2]
[393273576,1762414650069,-151.0,0.00015804,2]
[393273577,1762414650094,-151.0,0.00015804,2]
[393273578,1762414650118,-300.0,0.00015812,2]
[393273579,1762414650145,-1200.0,0.00015812,2]
[393273580,1762414650168,-294.45234167,0.00015813,2]
[393273581,1762414650194,-190.09163052,0.00015813,2]
[393273582,1762414650218,-500.0,0.00015813,2]
[393273583,1762414650242,-608.87744946,0.00015813,2]
[393273584,1762414650271,-500.0,0.00015813,2]
[393273585,1762414650300,-353.30345152,0.00015813,2]
[393273586,1762414650323,-182.25660657,0.00015813,2]
[393273587,1762414650346,-1200.0,0.00015813,2]
[393273588,1762414650369,-150.0,0.00015813,2]
[393273589,1762414650394,-5673.58153532,0.00015814,2]
[393273590,1762414680939,-151.0,0.00015408,2]
[393273591,1762414680963,-151.0,0.00015427,2]
[393273592,1762414680986,-154.23443221,0.00015714,2]
[393273593,1762414681262,-1200.0,0.00015813,2]
[393273594,1762414681290,-42503.76556779,0.00015814,2]
[393273596,1762414917735,206.93,0.00015084,2]
[393273597,1762414925162,322.6107,0.00038673,30]
[393273598,1762414925585,500.0,0.00038673,30]
[393273599,1762414926505,500.0,0.00038673,30]
[393273600,1762414927141,500.0,0.00038673,30]
[393273601,1762414927744,500.0,0.00038673,30]
[393273602,1762414929019,153.3401905,0.00038673,30]
[393273603,1762414934838,277.35679052,0.00038673,30]
[393273604,1762415008299,10000.01,0.00014836,2]
[393273605,1762415008326,10000.01,0.00014836,2]
[393273606,1762415056104,155.00014831,0.00038673,30]
[393273607,1762415068294,4201.03,0.00014845,2]
[393273610,1762415157743,5107.87,0.00014883,2]
[393273611,1762415239302,691.11,0.00014863,2]
[393273612,1762415239326,308.89,0.00014863,2]
[393273613,1762415353829,500.0,0.00038681,120]
[393273614,1762415354086,500.0,0.00038681,120]
[393273615,1762415354326,500.56820639,0.00038681,120]
[393273616,1762415364731,152.37,0.00014824,2]
[393273617,1762415420296,610.0,0.00014833,2]
[393273649,1762415431715,-743.43491,0.00015044,2]
[393273650,1762415431724,-241.9165,0.0001512,2]
[393273651,1762415431733,-31.82560161,0.00015189,2]
[393273652,1762415431744,-404.67739313,0.00015189,2]
[393273653,1762415431754,-183.70700851,0.00015189,2]
[393273654,1762415431763,-195.0,0.00015189,2]
[393273655,1762415431773,-250.0,0.00015259,2]
[393273656,1762415431783,-250.0,0.00015282,2]
[393273657,1762415431792,-300.0,0.00015296,2]
[393273658,1762415431801,-300.0,0.00015296,2]
[393273659,1762415431810,-1200.0,0.00015297,2]
[393273660,1762415431819,-300.0,0.00015297,2]
[393273661,1762415431829,-1200.0,0.00015297,2]
[393273662,1762415431838,-500.0,0.00015298,2]
[393273663,1762415431847,-500.0,0.00015298,2]
[393273664,1762415431857,-500.0,0.00015298,2]
[393273665,1762415431868,-624.97788825,0.00015298,2]
[393273666,1762415431877,-300.0,0.00015298,2]
[393273667,1762415431886,-55230.24,0.00015299,2]
[393273668,1762415431895,-3994.643,0.00015474,2]
[393273669,1762415431904,-176.192,0.00015474,2]
[393273670,1762415431913,-500.0,0.00015689,2]
[393273671,1762415431923,-403.79383922,0.00015689,2]
[393273673,1762415431933,-206.11663917,0.00015689,2]
[393273675,1762415431942,-10996.33501503,0.0001569,2]
[393273676,1762415431951,-13151.82569833,0.0001569,2]
[393273678,1762415431967,-356.71078147,0.0001569,2]
[393273680,1762415431980,-561.02813925,0.0001569,2]
[393273683,1762415431991,-673.55613743,0.0001569,2]
[393273685,1762415432001,-279.7504,0.0001569,2]
[393273687,1762415432010,-1000.0,0.0001569,2]
[393273689,1762415432024,-4070.3821,0.0001569,2]
[393273691,1762415432034,-2146.8337,0.0001569,2]
[393273693,1762415432043,-1203.86534683,0.0001569,2]
[393273695,1762415432055,-3796.13465317,0.0001569,2]
[393273697,1762415432063,-2500.0,0.0001569,2]
[393273699,1762415432072,-673.55613741,0.00015702,2]
[393273701,1762415432081,-922.79268475,0.00015714,2]
[393273703,1762415432092,-500.0,0.00015773,2]
[393273705,1762415432103,-500.0,0.00015773,2]
[393273707,1762415432112,-173.56770186,0.00015773,2]
[393273709,1762415432120,-164.42716658,0.00015773,2]
[393273711,1762415432129,-500.0,0.00015773,2]
[393273713,1762415432138,-276.27857921,0.00015773,2]
[393273716,1762415432154,-223.72142079,0.00015773,2]
[393273719,1762415432163,-500.0,0.00015773,2]
[393273722,1762415432172,-303.84405528,0.00015773,2]
[393273736,1762415437510,-673.55613741,0.00015714,2]
[393273737,1762415437520,-196.15594472,0.00015773,2]
[393273738,1762415437530,-500.0,0.00015773,2]
[393273739,1762415437539,-160.50194543,0.00015773,2]
[393273740,1762415437549,-500.0,0.00015773,2]
[393273741,1762415437558,-500.0,0.00015773,2]
[393273742,1762415437567,-500.0,0.00015773,2]
[393273743,1762415437577,-313.29928585,0.00015773,2]
[393273744,1762415437587,-500.0,0.00015773,2]
[393273745,1762415437597,-164.51884219,0.00015773,2]
[393273746,1762415437606,-500.0,0.00015773,2]
[393273747,1762415437615,-500.0,0.00015773,2]
[393273748,1762415437627,-500.0,0.00015773,2]
[393273749,1762415437638,-171.54256659,0.00015773,2]
[393273750,1762415437648,-500.0,0.00015773,2]
[393273751,1762415437658,-404.88651497,0.00015773,2]
[393273752,1762415437667,-500.0,0.00015773,2]
[393273753,1762415437678,-500.0,0.00015773,2]
[393273754,1762415437687,-500.0,0.00015773,2]
[393273755,1762415437696,-500.0,0.00015773,2]
[393273756,1762415437706,-500.0,0.00015773,2]
[393273757,1762415437969,-500.0,0.00015773,2]
[393273758,1762415437979,-503.00814931,0.00015773,2]
[393273759,1762415437988,-502.7923194,0.00015773,2]
[393273760,1762415437997,-500.0,0.00015773,2]
[393273761,1762415438007,-178.04792307,0.00015773,2]
[393273762,1762415438018,-151.0,0.00015781,2]
[393273763,1762415438028,-151.0,0.00015781,2]
[393273764,1762415438037,-151.0,0.00015781,2]
[393273765,1762415438047,-151.0,0.00015781,2]
[393273766,1762415438056,-151.0,0.00015781,2]
[393273767,1762415438067,-151.0,0.00015781,2]
[393273768,1762415438078,-151.0,0.00015781,2]
[393273769,1762415438087,-151.0,0.00015781,2]
[393273770,1762415438100,-151.0,0.00015781,2]
[393273771,1762415438110,-151.0,0.00015781,2]
[393273772,1762415438119,-151.0,0.00015781,2]
[393273773,1762415438128,-151.0,0.00015781,2]
[393273774,1762415438138,-151.0,0.00015781,2]
[393273775,1762415438147,-151.0,0.00015781,2]
[393273776,1762415438156,-151.0,0.00015781,2]
[393273777,1762415438165,-151.0,0.00015781,2]
[393273778,1762415438176,-151.0,0.00015781,2]
[393273779,1762415438185,-151.0,0.00015781,2]
[393273780,1762415438195,-151.0,0.00015781,2]
[393273781,1762415438204,-151.0,0.00015781,2]
[393273782,1762415438213,-151.0,0.00015787,2]
[393273783,1762415438223,-443.73507614,0.00015789,2]
[393273784,1762415438232,-500.0,0.00015789,2]
[393273785,1762415438242,-500.0,0.00015789,2]
[393273786,1762415438251,-500.0,0.00015789,2]
[393273787,1762415438260,-500.0,0.00015789,2]
[393273788,1762415438269,-500.0,0.00015789,2]
[393273789,1762415438278,-311.50346792,0.00015789,2]
[393273790,1762415438346,-188.49653208,0.00015789,2]
[393273791,1762415438355,-500.0,0.00015789,2]
[393273792,1762415438365,-500.0,0.00015789,2]
[393273793,1762415438374,-500.0,0.00015789,2]
[393273794,1762415438383,-1129.73,0.00015789,2]
[393273795,1762415438392,-1129.73,0.00015789,2]
[393273796,1762415438402,-1129.73,0.00015789,2]
[393273797,1762415438412,-500.0,0.00015789,2]
[393273798,1762415438421,-545.87304647,0.00015789,2]
[393273799,1762415438430,-500.0,0.00015789,2]
[393273800,1762415438440,-500.0,0.00015789,2]
[393273801,1762415438450,-500.0,0.00015789,2]
[393273802,1762415438459,-500.0,0.00015789,2]
[393273803,1762415438469,-500.0,0.00015789,2]
[393273804,1762415438478,-525.59163704,0.00015789,2]
[393273805,1762415438487,-158673.1935266,0.0001579,2]
[393273806,1762415438496,-581396.7640999,0.0001579,2]
[393273807,1762415438505,-12507.574729,0.0001579,2]
[393273808,1762415438515,-104991.7164145,0.0001579,2]
[393273809,1762415438524,-300.0,0.000158,5]
[393273810,1762415438533,-811.11079061,0.00015804,2]
[393273811,1762415438542,-2046.22,0.00015813,2]
[393273812,1762415438551,-673.48,0.00015813,2]
[393273813,1762415438560,-500.0,0.00015813,2]
[393273814,1762415438569,-500.0,0.00015813,2]
[393273815,1762415438582,-634.70667195,0.00015813,2]
[393273816,1762415438591,-500.0,0.00015813,2]
[393273817,1762415438601,-500.0,0.00015813,2]
[393273818,1762415438610,-546.40545234,0.00015813,2]
[393273819,1762415438620,-501.24555517,0.00015813,2]
[393273820,1762415438629,-1129.73,0.00015813,2]
[393273821,1762415438639,-1129.73,0.00015813,2]
[393273822,1762415438648,-500.0,0.00015813,2]
[393273823,1762415438657,-500.0,0.00015813,2]
[393273824,1762415438666,-500.0,0.00015813,2]
[393273825,1762415438676,-371822.65289689,0.00015814,2]
[393273826,1762415438686,-1000.0,0.00015814,2]
[393273827,1762415438695,-500.0,0.00015873,2]
[393273828,1762415438707,-500.0,0.00015873,2]
[393273829,1762415438716,-500.0,0.00015873,2]
[393273830,1762415438725,-500.0,0.00015873,2]
[393273831,1762415438735,-500.0,0.00015873,2]
[393273832,1762415438744,-500.0,0.00015873,2]
[393273833,1762415438753,-500.0,0.00015873,2]
[393273834,1762415438763,-164.38222559,0.00015873,2]
[393273835,1762415438772,-600.0,0.000159,5]
[393273836,1762415438782,-500.0,0.00015913,2]
[393273837,1762415438792,-500.0,0.00015913,2]
[393273838,1762415438801,-529.90780693,0.00015913,2]
[393273839,1762415438812,-500.0,0.00015913,2]
[393273840,1762415438821,-500.0,0.00015913,2]
[393273841,1762415438832,-500.0,0.00015913,2]
[393273842,1762415438842,-500.0,0.00015913,2]
[393273843,1762415438853,-642.66,0.00015913,2]
[393273844,1762415438862,-163.71623282,0.00015913,2]
[393273845,1762415438873,-500.0,0.00015913,2]
[393273846,1762415438882,-500.0,0.00015913,2]
[393273847,1762415438892,-500.0,0.00015913,2]
[393273848,1762415438902,-500.0,0.00015913,2]
[393273849,1762415438911,-500.0,0.00015913,2]
[393273850,1762415438922,-500.0,0.00015913,2]
[393273851,1762415438931,-500.0,0.00015913,2]
[393273852,1762415438942,-500.0,0.00015913,2]
[393273853,1762415438952,-500.0,0.00015913,2]
[393273854,1762415438962,-22926.36,0.00015918,2]
[393273855,1762415438972,-166.66,0.00015921,2]
[393273856,1762415438982,-151.0,0.00015933,2]
[393273857,1762415438992,-10996.33501503,0.00015936,2]
[393273858,1762415439002,-13151.82569831,0.00015936,2]
[393273859,1762415439012,-356.71078145,0.00015936,2]
[393273860,1762415439025,-350.7057472,0.00016,2]
[393273861,1762415439035,-561.02813925,0.00016006,2]
[393273862,1762415439045,-477.12,0.00016082,2]
[393273863,1762415439055,-477.12,0.00016082,2]
[393273864,1762415439064,-477.12,0.00016082,2]
[393273865,1762415439073,-477.12,0.00016082,2]
[393273866,1762415439083,-477.12,0.00016082,2]
[393273867,1762415439096,-477.12,0.00016082,2]
[393273868,1762415439106,-477.12,0.00016082,2]
[393273869,1762415439116,-338.79759397,0.00016115,2]
[393273870,1762415439127,-1129.73,0.00016115,2]
[393273871,1762415439137,-417.15136733,0.00016115,2]
[393273872,1762415439146,-43249.45,0.00016116,2]
[393273873,1762415439157,-407.92,0.00016116,2]
[393273874,1762415439166,-9999.99,0.00016116,2]
[393273875,1762415439177,-1427.23,0.00016116,2]
[393273876,1762415439186,-999.99,0.00016116,2]
[393273877,1762415439196,-150.99,0.00016116,2]
[393273878,1762415439206,-421.24,0.00016116,2]
[393273879,1762415439215,-1816.58,0.00016116,2]
[393273880,1762415439226,-9999.99,0.00016116,2]
[393273881,1762415439235,-4804.61,0.00016116,2]
[393273882,1762415439244,-508.61,0.00016116,2]
[393273883,1762415439254,-9999.99,0.00016116,2]
[393273884,1762415439263,-150.99,0.00016116,2]
[393273885,1762415439273,-9999.99,0.00016116,2]
[393273886,1762415439282,-9999.99,0.00016116,2]
[393273887,1762415439291,-7480.64,0.00016116,2]
[393273888,1762415439301,-1083.77,0.00016116,2]
[393273889,1762415439310,-6786.09,0.00016116,2]
[393273890,1762415439320,-1311.24,0.00016116,2]
[393273891,1762415439329,-19778.52,0.00016116,2]
[393273892,1762415439339,-10996.33501503,0.00016181,2]
[393273893,1762415439348,-13151.82569831,0.00016181,2]
[393273894,1762415439358,-356.71078145,0.00016181,2]
[393273895,1762415439367,-504.0,0.00016247,2]
[393273896,1762415439376,-166.66,0.00016249,2]
[393273897,1762415439386,-273.68,0.00016271,2]
[393273898,1762415439395,-500.0,0.00016277,2]
[393273899,1762415439404,-500.0,0.00016277,2]
[393273900,1762415439414,-500.0,0.00016277,2]
[393273901,1762415439424,-500.0,0.00016277,2]
[393273902,1762415439433,-152.08698658,0.00016278,2]
[393273903,1762415439442,-500.0,0.00016278,2]
[393273904,1762415439451,-150.0,0.00016278,2]
[393273905,1762415439460,-599.0,0.00016278,2]
[393273906,1762415439470,-150.0,0.00016278,2]
[393273907,1762415439480,-500.0,0.00016278,2]
[393273908,1762415439492,-244.53,0.00016298,2]
[393273909,1762415439502,-978.27180681,0.00016321,2]
[393273910,1762415439512,-1000.0,0.00016321,2]
[393273912,1762415439522,-500.90089396,0.00016321,2]
[393273913,1762415439531,-1000.0,0.00016321,2]
[393273915,1762415439541,-1000.0,0.00016321,2]
[393273916,1762415439550,-1000.0,0.00016321,2]
[393273918,1762415439559,-782.33179847,0.00016321,2]
[393273919,1762415439569,-326.03146038,0.00016321,2]
[393273920,1762415439578,-406.62378491,0.00016321,2]
[393273921,1762415439587,-1000.0,0.00016321,2]
[393273922,1762415439596,-349.30178506,0.00016321,2]
[393273923,1762415439606,-1000.0,0.00016321,2]
[393273924,1762415439615,-1002.73555537,0.00016321,2]
[393273925,1762415439625,-160.01934734,0.00016321,2]
[393273926,1762415439634,-1000.0,0.00016321,2]
[393273927,1762415439643,-1000.0,0.00016321,2]
[393273928,1762415439653,-1000.0,0.00016321,2]
[393273929,1762415439663,-1000.0,0.00016321,2]
[393273930,1762415439672,-1078.06406639,0.00016321,2]
[393273931,1762415439681,-1000.0,0.00016321,2]
[393273932,1762415439691,-501.59027207,0.00016321,2]
[393273933,1762415439700,-561.02813925,0.00016321,2]
[393273934,1762415439710,-500.0,0.00016415,2]
[393273935,1762415439719,-150.0,0.00016415,2]
[393273936,1762415439728,-599.0,0.00016415,2]
[393273937,1762415439738,-150.0,0.00016415,2]
[393273938,1762415439746,-500.0,0.00016415,2]
[393273939,1762415439756,-219.65200309,0.00016421,2]
[393273940,1762415439766,-503.07369237,0.00016421,2]
[393273941,1762415439775,-1000.0,0.00016421,2]
[393273942,1762415439784,-790.90535112,0.00016421,2]
[393273943,1762415439794,-406.97735465,0.00016421,2]
[393273944,1762415439803,-674.20785357,0.00016421,2]
[393273945,1762415439812,-10996.33501503,0.00016427,2]
[393273946,1762415439822,-13151.82569831,0.00016427,2]
[393273947,1762415439831,-356.71078145,0.00016427,2]
[393273948,1762415439840,-510.0,0.0001643,2]
[393273949,1762415439850,-500.0,0.00016438,2]
[393273950,1762415439860,-500.0,0.00016438,2]
[393273951,1762415439870,-500.0,0.00016438,2]
[393273952,1762415439880,-500.0,0.00016438,2]
[393273953,1762415439889,-500.0,0.00016438,2]
[393273954,1762415439898,-500.0,0.00016438,2]
[393273955,1762415439908,-150.0,0.00016438,2]
[393273956,1762415439917,-163.37,0.0001644,2]
[393273957,1762415439927,-465.64,0.00016475,2]
[393273958,1762415439936,-200.0,0.00016549,2]
[393273959,1762415439947,-200.0,0.00016549,2]
[393273960,1762415439956,-201.07254976,0.00016549,2]
[393273961,1762415439966,-238.10507591,0.00016549,2]
[393273962,1762415439975,-195.0,0.00016549,2]
[393273963,1762415439984,-500.0,0.00016552,2]
[393273964,1762415439993,-150.0,0.00016552,2]
[393273965,1762415440005,-599.0,0.00016552,2]
[393273966,1762415440017,-150.0,0.00016552,2]
[393273967,1762415440028,-500.0,0.00016552,2]
[393273968,1762415440038,-150.0,0.00016575,2]
[393273969,1762415440048,-166.66,0.00016578,2]
[393273970,1762415440059,-2500.0,0.00016632,2]
[393273971,1762415440069,-283.7415811,0.00016632,2]
[393273972,1762415440079,-195.0,0.00016632,2]
[393273973,1762415440090,-300.0,0.00016632,2]
[393273974,1762415440102,-561.02813925,0.00016637,2]
[393273975,1762415440111,-10996.33501503,0.00016672,2]
[393273976,1762415440121,-13151.82569831,0.00016672,2]
[393273977,1762415440131,-356.71078145,0.00016672,2]
[393273978,1762415440141,-500.0,0.00016688,2]
[393273979,1762415440152,-500.0,0.00016689,2]
[393273980,1762415440161,-200.0,0.00016689,2]
[393273981,1762415440170,-599.0,0.00016689,2]
[393273982,1762415440179,-266.33548393,0.00016689,2]
[393273983,1762415440188,-500.0,0.00016689,2]
[393273984,1762415440197,-300.0,0.00016689,2]
[393273985,1762415440206,-500.0,0.00016689,2]
[393273986,1762415440215,-150.0,0.00016689,2]
[393273987,1762415440224,-150.0,0.00016689,2]
[393273988,1762415440235,-500.0,0.00016689,2]
[393273989,1762415440244,-150.0,0.00016689,2]
[393273990,1762415440254,-500.0,0.00016689,2]
[393273991,1762415440263,-150.0,0.00016689,2]
[393273992,1762415440272,-500.0,0.00016689,2]
[393273993,1762415440280,-500.0,0.00016689,2]
[393273994,1762415440289,-180.85,0.00016712,2]
[393273995,1762415440298,-1852.42,0.00016721,2]
[393273996,1762415440307,-1000.0,0.00016721,2]
[393273997,1762415440316,-940.0,0.00016736,2]
[393273998,1762415440325,-420.0,0.00016736,2]
[393273999,1762415440335,-195.0,0.00016742,2]
[393274000,1762415440343,-300.0,0.00016742,2]
[393274001,1762415440353,-300.0,0.00016742,2]
[393274002,1762415440362,-300.0,0.00016742,2]
[393274003,1762415440371,-300.0,0.00016742,2]
[393274004,1762415440380,-323.34285068,0.00016742,2]
[393274005,1762415440389,-300.0,0.00016742,2]
[393274006,1762415440398,-250.0,0.00016742,2]
[393274007,1762415440407,-358.79,0.00016802,2]
[393274008,1762415440416,-316.47,0.00016802,2]
[393274009,1762415440425,-1680.0,0.00016821,2]
[393274010,1762415440435,-500.0,0.00016826,2]
[393274011,1762415440444,-599.0,0.00016826,2]
[393274012,1762415440452,-500.0,0.00016826,2]
[393274013,1762415440461,-300.0,0.00016826,2]
[393274014,1762415440470,-500.0,0.00016826,2]
[393274015,1762415440479,-150.0,0.00016826,2]
[393274016,1762415440489,-500.0,0.00016826,2]
[393274017,1762415440498,-500.0,0.00016826,2]
[393274018,1762415440507,-500.0,0.00016826,2]
[393274019,1762415440516,-500.0,0.00016826,2]
[393274020,1762415440525,-152.54268606,0.00016826,2]
[393274021,1762415440534,-152.00625849,0.00016826,2]
[393274022,1762415440543,-150.0,0.00016826,2]
[393274023,1762415440552,-202.37031601,0.00016826,2]
[393274024,1762415440561,-150.0,0.00016826,2]
[393274025,1762415440570,-150.0,0.00016826,2]
[393274026,1762415440580,-150.0,0.00016826,2]
[393274027,1762415440589,-150.0,0.00016826,2]
[393274028,1762415440598,-500.0,0.00016826,2]
[393274029,1762415440608,-500.0,0.00016826,2]
[393274030,1762415440619,-500.0,0.00016826,2]
[393274031,1762415440630,-150.0,0.00016826,2]
[393274032,1762415440639,-500.0,0.00016826,2]
[393274033,1762415440650,-500.0,0.00016826,2]
[393274034,1762415440660,-500.0,0.00016826,2]
[393274035,1762415440670,-500.0,0.00016826,2]
[393274036,1762415440679,-408.3599179,0.00016826,2]
[393274037,1762415440690,-150.0,0.00016826,2]
[393274038,1762415440700,-500.0,0.00016826,2]
[393274039,1762415440710,-195.0,0.00016827,2]
[393274040,1762415440720,-176.21,0.00016868,2]
[393274041,1762415440731,-277.26642779,0.00016868,2]
[393274042,1762415440741,-1500.0,0.00016868,2]
[393274043,1762415440750,-1020.11501514,0.00016868,2]
[393274044,1762415440759,-1500.0,0.00016868,2]
[393274045,1762415440769,-1500.0,0.00016868,2]
[393274046,1762415440778,-1016.7694007,0.00016868,2]
[393274047,1762415440787,-1500.0,0.00016868,2]
[393274048,1762415440797,-1500.0,0.00016868,2]
[393274049,1762415440806,-1500.0,0.00016868,2]
[393274050,1762415440815,-1500.0,0.00016868,2]
[393274051,1762415440825,-1196.23949712,0.00016868,2]
[393274052,1762415440834,-1000.0,0.000169,6]
[393274053,1762415440844,-166.66,0.00016906,2]
[393274054,1762415440853,-10996.33501503,0.00016918,2]
[393274055,1762415440862,-13151.82569831,0.00016918,2]
[393274056,1762415440872,-356.71078145,0.00016918,2]
[393274057,1762415440881,-2046.22,0.00016921,2]
[393274058,1762415440890,-673.48,0.00016921,2]
[393274059,1762415440899,-500.0,0.00016921,2]
[393274060,1762415440908,-500.0,0.00016921,2]
[393274061,1762415440917,-358.8,0.00016939,2]
[393274062,1762415440926,-316.47,0.00016939,2]
[393274063,1762415440935,-561.02813925,0.00016953,2]
[393274064,1762415440944,-500.0,0.00016963,2]
[393274065,1762415440953,-599.0,0.00016963,2]
[393274066,1762415440962,-500.0,0.00016963,2]
[393274067,1762415440972,-300.0,0.00016963,2]
[393274068,1762415440981,-392.08320953,0.00016963,2]
[393274069,1762415440990,-213.05879372,0.00016963,2]
[393274070,1762415440999,-500.0,0.00016963,2]
[393274071,1762415441008,-506.64145389,0.00016963,2]
[393274072,1762415441021,-500.0,0.00016963,2]
[393274073,1762415441030,-500.0,0.00016963,2]
[393274074,1762415441039,-150.0,0.00016963,2]
[393274075,1762415441048,-150.0,0.00016963,2]
[393274076,1762415441056,-150.0,0.00016963,2]
[393274077,1762415441065,-150.0,0.00016963,2]
[393274078,1762415441074,-500.0,0.00016963,2]
[393274079,1762415441083,-500.0,0.00016963,2]
[393274080,1762415441092,-505.03214734,0.00016963,2]